bitfinex/quotes_BTCUSD_20240727
["timestamp","ask_amount","ask_price","bid_price","bid_amount"]
[1722111309459,0.45077872,67841.0,67832.0,0.0500542]
[1722111309668,0.04583479,67845.0,67832.0,0.0245542]
[1722111309872,0.06237605,67844.0,67833.0,0.00294811]
[1722111310082,0.06237605,67844.0,67834.0,0.023]
[1722111310083,0.01530663,67844.0,67834.0,0.023]
[1722111310298,0.04583479,67845.0,67840.0,0.1849]
[1722111310508,0.04583479,67845.0,67841.0,0.0245542]
[1722111310954,0.04583479,67845.0,67843.0,0.0015542]
[1722111311176,0.04583479,67845.0,67844.0,0.02953]
[1722111311665,0.04583479,67845.0,67844.0,0.05253]
[1722111311901,0.06898126,67845.0,67844.0,0.05253]
[1722111312151,0.06898126,67845.0,67844.0,0.02953]
[1722111312152,0.19322879,67845.0,67844.0,0.02953]
[1722111312371,0.04583479,67845.0,67844.0,0.02953]
[1722111312611,0.62841779,67845.0,67844.0,0.02953]
[1722111312845,0.62841779,67845.0,67807.0,0.1849]
[1722111312846,0.7,67840.0,67807.0,0.1849]
[1722111313079,0.294824,67837.0,67807.0,0.1849]
[1722111313357,0.07512979,67838.0,67815.0,0.00873587]
[1722111313358,0.04659741,67836.0,67815.0,0.00873587]
[1722111313583,0.04659741,67836.0,67807.0,0.1849]
[1722111313584,0.44232,67824.0,67808.0,0.1549]
[1722111313816,0.7,67840.0,67823.0,0.0397593]
[1722111314075,0.37512979,67838.0,67823.0,0.0397593]
[1722111314303,0.04683036,67837.0,67824.0,0.1549]
[1722111314578,0.07512979,67835.0,67825.0,0.02953]
[1722111314750,0.07512979,67826.0,67823.0,0.0102293]
[1722111314949,0.7372,67824.0,67823.0,0.0102293]
[1722111315517,0.02316155,67826.0,67823.0,0.0102293]
[1722111315518,0.02316155,67826.0,67824.0,0.02953]
[1722111315721,0.147433,67828.0,67824.0,0.02953]
[1722111315924,0.147421,67833.0,67824.0,0.02953]
[1722111316271,0.1404,67834.0,67824.0,0.20409593]
[1722111316500,0.1404,67834.0,67825.0,0.0015542]
[1722111316700,0.1404,67834.0,67826.0,0.18443]
[1722111316915,0.07512979,67852.0,67825.0,0.0245542]
[1722111316916,0.065,67845.0,67828.0,0.18443]
[1722111317321,0.294778,67848.0,67827.0,0.0015542]
[1722111317322,0.412431,67828.0,67827.0,0.0015542]
[1722111317490,0.14744,67824.0,67823.0,0.0102293]
[1722111317694,1.15380551,67824.0,67823.0,0.0102293]
[1722111317846,0.442464,67802.0,67801.0,0.085]
[1722111318053,0.73744,67802.0,67801.0,0.085]
[1722111318272,0.147488,67802.0,67801.0,0.085]
[1722111318474,0.294931,67813.0,67801.0,0.085]
[1722111318475,0.147468,67811.0,67802.0,0.02953]
[1722111318650,0.147486,67803.0,67802.0,0.02953]
[1722111318848,0.43834166,67823.0,67803.0,0.0015542]
[1722111318849,1.0,67820.0,67803.0,0.0015542]
[1722111319052,0.02316583,67809.0,67802.0,0.02953]
[1722111319281,0.43834166,67823.0,67802.0,0.02953]
[1722111319282,0.29492,67815.0,67802.0,0.02953]
[1722111319453,0.45077872,67822.0,67802.0,0.02953]
[1722111319662,0.147475,67808.0,67802.0,0.02953]
[1722111319865,1.0,67819.0,67802.0,0.02953]
[1722111320068,0.2995774,67948.0,67801.0,0.06188]
[1722111320069,1.51050179,67803.0,67801.0,0.06188]
[1722111320267,1.51050179,67803.0,67801.0,0.03888]
[1722111320268,0.51759379,67802.0,67801.0,0.03888]
[1722111320571,0.51759379,67802.0,67790.0,0.00514649]
[1722111320572,1.30248329,67802.0,67790.0,0.00514649]
[1722111320747,2.30766779,67794.0,67790.0,0.00514649]
[1722111320946,3.08214897,67794.0,67790.0,0.00514649]
[1722111321178,0.442555,67788.0,67776.0,0.009119]
[1722111321305,0.78505118,67788.0,67776.0,0.009119]
[1722111321551,2.37512518,67788.0,67776.0,0.009119]
[1722111321893,0.442555,67788.0,67777.0,0.02953]
[1722111322098,0.442555,67788.0,67776.0,0.009119]
[1722111322099,1.46572771,67788.0,67776.0,0.009119]
[1722111322307,1.147518,67788.0,67776.0,0.038649]
[1722111322482,0.065,67789.0,67776.0,0.038649]
[1722111322483,0.295033,67789.0,67776.0,0.038649]
[1722111322687,0.937592,67788.0,67776.0,0.038649]
[1722111322888,1.370129,67788.0,67776.0,0.009119]
[1722111323140,1.77524962,67788.0,67776.0,0.009119]
[1722111323313,1.77524733,67788.0,67787.0,0.09662457]
[1722111323536,1.48021033,67788.0,67787.0,0.09662457]
[1722111323745,1.435129,67788.0,67787.0,0.09662457]
[1722111323956,0.845055,67788.0,67787.0,0.09662457]
[1722111324114,1.140092,67788.0,67787.0,0.09662457]
[1722111324295,0.940092,67788.0,67787.0,0.09662457]
[1722111324731,1.140092,67788.0,67787.0,0.09662457]
[1722111324936,1.435129,67788.0,67787.0,0.09662457]
[1722111325291,1.4816065,67788.0,67787.0,0.01332457]
[1722111325496,1.58789874,67788.0,67787.0,0.01332457]
[1722111325696,1.62638032,67788.0,67787.0,0.01332457]
[1722111326065,1.85115013,67788.0,67787.0,0.01332457]
[1722111326268,2.527882,67777.0,67776.0,0.009119]
[1722111326479,3.01270116,67777.0,67776.0,0.009119]
[1722111326675,1.22253116,67777.0,67776.0,0.009119]
[1722111326883,2.17605366,67777.0,67776.0,0.009119]
[1722111327086,1.442627,67777.0,67776.0,0.009119]
[1722111327297,0.7,67784.0,67776.0,0.038649]
[1722111327497,0.3,67778.0,67777.0,0.0015542]
[1722111327650,1.0377,67778.0,67777.0,0.0015542]
[1722111327851,0.7,67783.0,67777.0,0.0015542]
[1722111328077,0.447542,67777.0,67776.0,0.038649]
[1722111328251,0.742627,67777.0,67776.0,0.038649]
[1722111328458,0.3,67777.0,67776.0,0.038649]
[1722111328885,0.447542,67777.0,67776.0,0.038649]
[1722111329090,0.447542,67777.0,67776.0,0.009119]
[1722111329091,0.742627,67777.0,67776.0,0.009119]
[1722111329295,1.40277516,67777.0,67776.0,0.009119]
[1722111329501,1.69786016,67777.0,67776.0,0.009119]
[1722111330314,2.374685,67777.0,67776.0,0.009119]
[1722111331363,2.55573281,67777.0,67776.0,0.009119]
[1722111331562,2.85081781,67777.0,67776.0,0.009119]
[1722111331765,2.55573281,67777.0,67776.0,0.009119]
[1722111332488,2.63256036,67777.0,67776.0,0.009119]
[1722111332695,2.63051515,67777.0,67776.0,0.009119]
[1722111332904,2.63051515,67777.0,67757.0,0.02953]
[1722111333106,2.63051515,67777.0,67704.0,0.002]
[1722111333107,0.06470146,67724.0,67710.0,0.1849]
[1722111333309,0.002,67725.0,67724.0,0.18443]
[1722111333512,0.002,67726.0,67724.0,0.18443]
[1722111333881,0.002,67736.0,67724.0,0.18415958]
[1722111334086,0.002,67730.0,67726.0,0.02953]
[1722111334433,0.002,67730.0,67729.0,0.18443]
[1722111334653,0.01446817,67730.0,67729.0,0.18443]
[1722111334841,0.01446817,67730.0,67729.0,0.19411568]
[1722111335056,0.01646817,67730.0,67729.0,0.19411568]
[1722111335847,0.01646817,67730.0,67729.0,0.29411568]
[1722111336062,0.01646817,67730.0,67729.0,0.42231568]
[1722111336494,0.01446817,67730.0,67729.0,0.42231568]
[1722111337220,0.01446817,67730.0,67729.0,0.42181568]
[1722111337651,0.06101621,67737.0,67729.0,0.44481568]
[1722111337884,0.57512979,67771.0,67738.0,0.0625]
[1722111337885,0.07512979,67771.0,67738.0,0.0625]
[1722111338111,0.07512979,67771.0,67743.0,0.18343]
[1722111338112,0.02157177,67752.0,67743.0,0.18343]
[1722111338323,0.02157177,67752.0,67739.0,0.0245542]
[1722111338324,0.45077872,67754.0,67747.0,0.18343]
[1722111338611,0.45077872,67754.0,67744.0,0.17856842]
[1722111338612,0.07512979,67771.0,67749.0,0.18343]
[1722111338827,0.07512979,67771.0,67751.0,0.18343]
[1722111339081,0.07512979,67752.0,67750.0,0.1015542]
[1722111339347,0.07512979,67752.0,67751.0,0.023]
[1722111339526,0.07512979,67752.0,67742.0,0.1549]
[1722111339806,0.07512979,67745.0,67742.0,0.1549]
[1722111339945,0.07512979,67745.0,67743.0,0.1549]
[1722111340447,0.07512979,67752.0,67744.0,0.2831]
[1722111340674,0.07512979,67745.0,67744.0,0.2831]
[1722111341135,0.07512979,67745.0,67744.0,0.3061]
[1722111341336,0.06256747,67752.0,67744.0,0.4061]
[1722111341485,0.06256747,67752.0,67751.0,0.1549]
[1722111341691,0.06256747,67752.0,67751.0,0.2549]
[1722111342360,0.06256747,67752.0,67751.0,0.28039]
[1722111342783,0.06256747,67752.0,67736.0,0.27237]
[1722111342989,0.06256747,67752.0,67740.0,0.1549]
[1722111342990,0.07512979,67744.0,67740.0,0.1549]
[1722111343808,0.04717286,67743.0,67729.0,0.01]
[1722111344022,0.07512979,67744.0,67729.0,0.01]
[1722111344239,0.04728781,67743.0,67730.0,0.1549]
[1722111344488,0.07512979,67744.0,67730.0,0.1549]
[1722111344720,0.07512979,67744.0,67731.0,0.00966812]
[1722111344931,0.07512979,67744.0,67730.0,0.14442232]
[1722111345376,0.00134737,67743.0,67730.0,0.14442232]
[1722111345599,0.07512979,67744.0,67730.0,0.14442232]
[1722111345808,0.07512979,67744.0,67732.0,0.13394464]
[1722111345997,0.07512979,67744.0,67734.0,0.13394464]
[1722111346448,0.0015542,67743.0,67734.0,0.13394464]
[1722111346970,0.07512979,67744.0,67735.0,0.542902]
[1722111346971,0.07512979,67736.0,67735.0,0.542902]
[1722111347202,0.06256747,67752.0,67736.0,0.08837]
[1722111347440,0.05006878,67752.0,67751.0,0.147599]
[1722111347676,0.05006878,67752.0,67751.0,0.0147599]
[1722111347931,0.1396,67780.0,67751.0,0.1377599]
[1722111347932,0.07512979,67758.0,67751.0,0.1377599]
[1722111348172,0.07512979,67786.0,67758.0,0.002]
[1722111348404,0.07512979,67786.0,67751.0,0.1147599]
[1722111348405,0.07512979,67786.0,67761.0,0.08837]
[1722111348621,0.07512979,67764.0,67762.0,0.023]
[1722111349080,0.04561979,67764.0,67763.0,0.02953]
[1722111349308,0.04561979,67764.0,67763.0,0.023]
[1722111349309,0.01610979,67764.0,67763.0,0.023]
[1722111349563,0.07512979,67786.0,67763.0,0.040553]
[1722111349815,0.45077872,67785.0,67773.0,0.02953]
[1722111350090,0.45077872,67785.0,67763.0,0.017553]
[1722111350091,0.45077872,67784.0,67783.0,0.02953]
[1722111350311,0.07512979,67786.0,67783.0,0.02953]
[1722111350989,0.07512979,67786.0,67784.0,0.02953]
[1722111351218,0.07512979,67796.0,67784.0,0.02953]
[1722111351219,0.07512979,67785.0,67784.0,0.02953]
[1722111351486,0.05025958,67796.0,67784.0,0.02953]
[1722111351722,0.02315952,67818.0,67796.0,0.02953]
[1722111351945,0.00109534,67817.0,67804.0,0.02953]
[1722111352207,0.51216337,67820.0,67806.0,0.02953]
[1722111352444,0.51216337,67820.0,67805.0,0.0407015]
[1722111352445,0.52590851,67840.0,67813.0,0.02953]
[1722111352670,0.059135,67850.0,67822.0,0.02953]
[1722111352894,0.09036469,67857.0,67822.0,0.02953]
[1722111352895,0.0152349,67857.0,67830.0,0.02953]
[1722111353124,0.0152349,67857.0,67824.0,0.383249]
[1722111353125,0.0152349,67857.0,67832.0,0.02953]
[1722111353357,0.46601362,67857.0,67835.0,0.02953]
[1722111353570,0.46601362,67857.0,67837.0,0.02953]
[1722111353571,0.0152349,67857.0,67837.0,0.02953]
[1722111353796,0.0152349,67857.0,67840.0,0.294809]
[1722111354090,0.00832,67852.0,67845.0,0.02953]
[1722111354290,0.00832,67852.0,67851.0,0.25204079]
[1722111354537,0.0602,67887.0,67854.0,0.02953]
[1722111354538,0.07512979,67885.0,67854.0,0.02953]
[1722111354781,0.45077872,67855.0,67854.0,0.02953]
[1722111355030,0.00115726,67874.0,67856.0,0.02953]
[1722111355236,0.059106,67883.0,67856.0,0.02953]
[1722111355468,0.059106,67883.0,67854.0,0.07839891]
[1722111355469,0.45077872,67896.0,67867.0,0.02953]
[1722111355700,0.0602,67916.0,67889.0,0.07512979]
[1722111355994,0.002,67919.0,67896.0,0.02953]
[1722111356253,0.002,67919.0,67904.0,0.02953]
[1722111356745,0.002,67919.0,67900.0,0.1]
[1722111356746,0.002,67919.0,67906.0,0.02953]
[1722111356970,0.0072349,67924.0,67908.0,0.18443]
[1722111357208,0.0072349,67924.0,67905.0,0.05085328]
[1722111357209,0.0072349,67924.0,67917.0,0.07512979]
[1722111357445,0.002,67939.0,67919.0,0.08837]
[1722111357681,0.0083,67962.0,67938.0,0.25955979]
[1722111357993,0.0083,67962.0,67930.0,0.08837]
[1722111357994,0.45077872,67950.0,67940.0,0.18443]
[1722111358218,0.7,67974.0,67939.0,0.22362384]
[1722111358219,0.0083,67983.0,67947.0,0.2728]
[1722111358442,0.0053,67983.0,67968.0,0.18443]
[1722111358676,0.0053,67983.0,67957.0,0.05421793]
[1722111358677,0.45077872,67981.0,67975.0,0.02953]
[1722111358921,0.0053,67983.0,67976.0,0.04250255]
[1722111359155,0.0053,67983.0,67977.0,0.20712326]
[1722111359375,0.0053,67983.0,67979.0,0.18443]
[1722111359602,0.0053,67983.0,67981.0,0.18443]
[1722111359880,0.0053,67983.0,67982.0,0.28443]
[1722111360090,0.147038,68010.0,67982.0,0.28443]
[1722111360091,0.002,68019.0,67990.0,0.18443]
[1722111360336,0.002,68019.0,68000.0,0.08837]
[1722111360589,0.002,68019.0,68001.0,0.25015699]
[1722111360813,0.002,68019.0,68018.0,0.07512979]
[1722111361048,0.002,68019.0,68018.0,0.23008873]
[1722111361275,0.002,68019.0,68018.0,0.39386905]
[1722111361519,0.00829,68037.0,68020.0,0.18443]
[1722111361772,0.00829,68037.0,68019.0,0.13077007]
[1722111361773,0.00829,68037.0,68022.0,0.18443]
[1722111362012,0.00209,68039.0,68026.0,0.02953]
[1722111362232,0.00209,68039.0,68026.0,0.12953]
[1722111362707,0.00209,68039.0,68028.0,0.02953]
[1722111362936,0.00209,68039.0,68036.0,0.02953]
[1722111363171,0.00209,68039.0,68038.0,0.18443]
[1722111363413,0.00209,68039.0,68038.0,0.30743]
[1722111363662,0.296039,68039.0,68038.0,0.15253]
[1722111363878,1.141019,68024.0,67969.0,0.29425]
[1722111364093,0.147011,68022.0,68021.0,0.45077872]
[1722111364362,0.147011,68022.0,67974.0,0.033455]
[1722111364363,0.7,67998.0,67974.0,0.033455]
[1722111364614,0.7,67982.0,67939.0,0.07512979]
[1722111364818,0.0015542,67981.0,67967.0,0.02953]
[1722111365034,0.0015542,67981.0,67931.0,0.45277872]
[1722111365035,0.147139,67963.0,67931.0,0.45277872]
[1722111365240,0.3,67976.0,67931.0,0.45277872]
[1722111365241,0.7,67985.0,67957.0,0.45077872]
[1722111365445,0.7,67985.0,67941.0,0.09037]
[1722111365446,0.147101,67981.0,67946.0,0.08837]
[1722111365704,0.0015542,67984.0,67952.0,0.45077872]
[1722111365919,0.0015542,67988.0,67965.0,0.1549]
[1722111366123,0.0015542,67988.0,67954.0,0.294316]
[1722111366124,0.07512979,67966.0,67935.0,0.00869305]
[1722111366330,0.51661679,67952.0,67939.0,0.00872293]
[1722111366531,0.51661679,67952.0,67931.0,0.002]
[1722111366532,0.0015542,67965.0,67931.0,0.002]
[1722111366681,0.7,67970.0,67931.0,0.002]
[1722111366881,0.7,67970.0,67935.0,0.02953]
[1722111367110,0.07512979,67989.0,67941.0,0.18643]
[1722111367111,0.0015542,67969.0,67941.0,0.18643]
[1722111367270,0.7,67984.0,67941.0,0.18643]
[1722111367475,0.7,67984.0,67943.0,0.18443]
[1722111367476,0.147105,67979.0,67943.0,0.18443]
[1722111367692,0.07512979,67981.0,67943.0,0.18443]
[1722111367896,0.51097872,67983.0,67960.0,0.02953]
[1722111368144,0.0753,67986.0,67963.0,0.1549]
[1722111368355,0.45077872,67984.0,67963.0,0.02953]
[1722111368528,0.0602,67994.0,67971.0,0.23002979]
[1722111368729,0.0753,67999.0,67973.0,0.18443]
[1722111368931,0.0602,68004.0,67972.0,0.02300298]
[1722111368932,0.45077872,68003.0,67988.0,0.02953]
[1722111369245,0.0602,68004.0,67989.0,0.02953]
[1722111369709,0.0753,68012.0,67991.0,0.02953]
[1722111370235,0.0753,68012.0,67993.0,0.02953]
[1722111370670,0.0753,68012.0,67989.0,0.1549]
[1722111370671,0.0602,68029.0,68007.0,0.07512979]
[1722111370859,0.0602,68029.0,68001.0,0.02953]
[1722111370860,0.45077872,68027.0,68008.0,0.07512979]
[1722111371060,0.0602,68029.0,68010.0,0.02953]
[1722111371276,0.00209,68039.0,68016.0,0.02953]
[1722111371477,0.00209,68039.0,68018.0,0.02953]
[1722111371679,0.00209,68039.0,68031.0,0.07512979]
[1722111371886,0.00209,68039.0,68026.0,0.02953]
[1722111372300,0.00209,68039.0,68018.0,0.1549]
[1722111372301,0.00209,68039.0,68007.0,0.1549]
[1722111372519,0.00209,68039.0,68010.0,0.06053387]
[1722111372720,0.00209,68039.0,68010.0,0.08353387]
[1722111372926,0.00209,68039.0,68022.0,0.07512979]
[1722111373324,0.00209,68039.0,68023.0,0.02953]
[1722111373546,0.00209,68039.0,68030.0,0.07512979]
[1722111373754,0.00209,68039.0,68031.0,0.03704298]
[1722111373953,0.00209,68039.0,68033.0,0.02953]
[1722111374157,0.00209,68039.0,68038.0,0.07512979]
[1722111374357,0.00209,68039.0,68038.0,0.10465979]
[1722111374624,0.00209,68039.0,68038.0,0.15253]
[1722111374821,0.0251719,68039.0,68038.0,0.15253]
[1722111375047,0.0251719,68039.0,68038.0,0.338173]
[1722111375253,0.00209,68039.0,68038.0,0.30743]
[1722111375789,0.002,68049.0,68042.0,0.18443]
[1722111376002,0.002,68049.0,68044.0,0.18443]
[1722111376211,0.002,68049.0,68045.0,0.17854581]
[1722111376411,0.002,68049.0,68032.0,0.02953]
[1722111376412,0.37059399,68048.0,68032.0,0.02953]
[1722111376618,0.0613,68042.0,68032.0,0.02953]
[1722111376831,0.0015542,68041.0,68032.0,0.02953]
[1722111377078,0.0015542,68041.0,68010.0,0.06934934]
[1722111377079,0.0015542,68041.0,68033.0,0.02953]
[1722111377284,0.0015542,68041.0,68036.0,0.18443]
[1722111377495,0.002,68049.0,68038.0,0.02953]
[1722111377706,0.002,68049.0,68037.0,0.07512979]
[1722111377707,0.002,68049.0,68045.0,0.02953]
[1722111377915,0.002,68049.0,68037.0,0.07512979]
[1722111377916,0.002,68049.0,68047.0,0.02953]
[1722111378138,0.02508001,68049.0,68048.0,0.35690598]
[1722111378369,0.02508001,68049.0,68048.0,0.29489598]
[1722111378579,0.002,68049.0,68048.0,0.31789598]
[1722111378833,0.002,68049.0,68048.0,0.75876098]
[1722111379231,0.002,68069.0,68059.0,0.18443]
[1722111379440,0.002,68069.0,68068.0,0.02953]
[1722111379647,0.002,68069.0,68068.0,0.15253]
[1722111379885,0.002,68069.0,68068.0,0.454341]
[1722111380112,0.002,68069.0,68068.0,0.30743]
[1722111380349,0.002,68069.0,68068.0,0.78641998]
[1722111380591,0.002,68069.0,68068.0,0.38177351]
[1722111380857,0.002,68069.0,68068.0,0.52868451]
[1722111381087,0.002,68069.0,68068.0,0.19317793]
[1722111381335,0.002,68069.0,68068.0,0.15253]
[1722111381551,0.002,68069.0,68068.0,0.19342342]
[1722111381785,0.002,68069.0,68068.0,0.15253]
[1722111382020,0.002,68069.0,68068.0,0.34839842]
[1722111382243,0.002,68069.0,68068.0,0.38323826]
[1722111383430,0.002,68069.0,68068.0,0.53014926]
[1722111383666,0.002,68079.0,68074.0,0.18443]
[1722111383901,0.45077872,68107.0,68083.0,0.18443]
[1722111384123,0.45077872,68107.0,68088.0,0.02953]
[1722111384124,0.0015542,68106.0,68088.0,0.02953]
[1722111384355,0.0015542,68106.0,68088.0,0.04036185]
[1722111384605,0.144,68089.0,68088.0,0.02953]
[1722111384842,0.144,68089.0,68062.0,0.00866641]
[1722111385056,0.144,68089.0,68044.0,0.52590851]
[1722111385057,0.07512979,68080.0,68051.0,0.07512979]
[1722111385271,0.0015542,68088.0,68065.0,0.07512979]
[1722111385496,0.0015542,68088.0,68069.0,0.02953]
[1722111385757,0.0015542,68088.0,68085.0,0.02953]
[1722111385957,0.144,68089.0,68087.0,0.02953]
[1722111386162,0.0015542,68088.0,68087.0,0.02953]
[1722111386377,0.0015542,68088.0,68087.0,0.18443]
[1722111386607,0.00284,68089.0,68087.0,0.302873]
[1722111386812,0.00284,68089.0,68088.0,0.28443]
[1722111387220,0.00284,68089.0,68088.0,0.34432088]
[1722111387626,0.00284,68089.0,68088.0,0.34704588]
[1722111387834,0.00284,68089.0,68088.0,0.30743]
[1722111388038,0.00284,68089.0,68088.0,0.45401426]
[1722111388246,0.00284,68089.0,68088.0,0.38453938]
[1722111388461,0.00284,68089.0,68088.0,0.28443]
[1722111389078,0.00284,68089.0,68088.0,0.30743]
[1722111389485,0.02590529,68089.0,68088.0,0.3191318]
[1722111389703,0.02590529,68089.0,68088.0,0.30743]
[1722111390115,0.0015542,68107.0,68088.0,0.28443]
[1722111390318,0.00831,68108.0,68094.0,0.18443]
[1722111390319,0.0015542,68099.0,68094.0,0.18443]
[1722111390528,0.0613,68101.0,68094.0,0.02953]
[1722111390742,0.09043642,68098.0,68094.0,0.02953]
[1722111391379,0.09043642,68098.0,68067.0,0.45077872]
[1722111391380,0.09043642,68098.0,68068.0,0.02953]
[1722111391600,0.09043642,68098.0,68086.0,0.18443]
[1722111391601,0.01530663,68098.0,68086.0,0.18443]
[1722111391813,0.01530663,68098.0,68090.0,0.02953]
[1722111392437,0.01530663,68098.0,68092.0,0.02953]
[1722111392646,0.01530663,68098.0,68095.0,0.18443]
[1722111392865,0.01530663,68098.0,68097.0,0.02953]
[1722111393076,0.0655,68113.0,68097.0,0.02953]
[1722111393077,0.07512979,68128.0,68107.0,0.18443]
[1722111393297,0.07512979,68110.0,68108.0,0.0015542]
[1722111393499,0.07512979,68110.0,68062.0,0.45077872]
[1722111393702,0.07512979,68088.0,68084.0,0.02953]
[1722111394148,0.1431,68087.0,68085.0,0.02953]
[1722111394775,0.1431,68087.0,68086.0,0.02953]
[1722111394985,0.0655,68098.0,68086.0,0.02953]
[1722111395195,0.0655,68098.0,68086.0,0.18443]
[1722111395405,0.0655,68098.0,68088.0,0.02953]
[1722111395605,0.0655,68098.0,68089.0,0.0015542]
[1722111395883,0.07512979,68091.0,68089.0,0.0015542]
[1722111396062,0.07512979,68091.0,68088.0,0.02953]
[1722111396277,1.140599,68089.0,68088.0,0.02953]
[1722111396480,1.140599,68089.0,68065.0,0.45077872]
[1722111396481,0.101994,68089.0,68065.0,0.45077872]
[1722111396688,0.101994,68088.0,68066.0,0.07911566]
[1722111396897,0.07512979,68091.0,68070.0,0.02953]
[1722111396898,0.101994,68087.0,68070.0,0.02953]
[1722111397112,0.07512979,68102.0,68085.0,0.02953]
[1722111397315,0.10080261,68097.0,68085.0,0.02953]
[1722111397718,0.10080261,68097.0,68087.0,0.02953]
[1722111398152,0.10080261,68097.0,68072.0,0.293805]
[1722111398153,0.04016353,68096.0,68095.0,0.25955979]
[1722111398399,0.01530663,68116.0,68102.0,0.18443]
[1722111398622,0.01530663,68116.0,68104.0,0.18443]
[1722111398847,0.0137421,68130.0,68106.0,0.18443]
[1722111399063,0.0137421,68130.0,68105.0,0.1]
[1722111399064,0.0137421,68130.0,68110.0,0.18443]
[1722111399292,0.0137421,68130.0,68118.0,0.624842]
[1722111399503,0.0137421,68130.0,68118.0,1.04145]
[1722111399744,0.01538108,68134.0,68128.0,0.1549]
[1722111399943,0.00084,68135.0,68134.0,0.595208]
[1722111400151,0.00828,68167.0,68146.0,0.18443]
[1722111400358,0.00828,68167.0,68148.0,0.331169]
[1722111400566,0.00828,68167.0,68148.0,0.747647]
[1722111400770,0.00828,68167.0,68148.0,0.30743]
[1722111400976,0.00828,68167.0,68148.0,0.454169]
[1722111401181,0.00828,68167.0,68148.0,0.777247]
[1722111401404,0.00828,68167.0,68148.0,0.8861647]
[1722111401615,0.00828,68167.0,68157.0,0.14672]
[1722111401837,0.00828,68167.0,68158.0,0.624582]
[1722111402050,0.002,68189.0,68158.0,0.32350784]
[1722111402282,0.002,68189.0,68168.0,0.18443]
[1722111402551,0.002,68189.0,68168.0,0.02953]
[1722111402552,0.0776,68176.0,68168.0,0.02953]
[1722111402786,0.1431,68176.0,68168.0,0.02953]
[1722111403013,0.1431,68176.0,68152.0,0.1]
[1722111403014,0.07512979,68175.0,68152.0,0.1]
[1722111403247,0.293342,68180.0,68168.0,0.45077872]
[1722111403477,0.07512979,68193.0,68168.0,0.28443]
[1722111403711,0.07512979,68193.0,68168.0,0.36832403]
[1722111403938,0.07512979,68193.0,68168.0,0.32344283]
[1722111404175,0.07512979,68193.0,68168.0,0.35697757]
[1722111404405,0.07512979,68193.0,68168.0,0.32012776]
[1722111404659,0.07512979,68193.0,68168.0,0.38200868]
[1722111404880,0.07512979,68193.0,68168.0,0.42121068]
[1722111405086,0.14863,68199.0,68178.0,0.624453]
[1722111405087,0.002,68199.0,68178.0,0.624453]
[1722111405297,0.002,68199.0,68178.0,0.51309351]
[1722111405504,0.0796,68189.0,68178.0,0.12953]
[1722111405731,0.07512979,68187.0,68178.0,0.12953]
[1722111406202,0.0655,68181.0,68178.0,0.02953]
[1722111406426,0.07512979,68180.0,68178.0,0.12953]
[1722111406654,0.07512979,68187.0,68178.0,0.12953]
[1722111407136,0.002,68189.0,68178.0,0.28443]
[1722111407364,0.002,68189.0,68178.0,0.34423894]
[1722111407597,0.002,68189.0,68178.0,0.58384301]
[1722111407845,0.002,68189.0,68178.0,0.87719201]
[1722111408068,0.002,68189.0,68178.0,0.40956901]
[1722111408341,0.002,68199.0,68198.0,0.331061]
[1722111408563,0.002,68199.0,68198.0,0.51169976]
[1722111408825,0.002,68199.0,68198.0,0.12953]
[1722111409055,0.002,68199.0,68198.0,0.30743]
[1722111409279,0.00827,68201.0,68200.0,0.18443]
[1722111409280,0.00204354,68201.0,68200.0,0.18443]
[1722111409488,0.00204354,68201.0,68200.0,0.30743]
[1722111409702,0.00204354,68201.0,68200.0,0.93004723]
[1722111409950,0.00204354,68201.0,68200.0,0.63679223]
[1722111410244,0.00204354,68201.0,68200.0,0.40676798]
[1722111410454,0.00204354,68201.0,68200.0,0.15253]
[1722111410455,0.001856,68201.0,68200.0,0.15253]
[1722111410670,0.001856,68201.0,68200.0,0.17313568]
[1722111410901,0.001856,68201.0,68200.0,0.13153]
[1722111411137,0.001856,68201.0,68200.0,0.12953]
[1722111411408,0.00660444,68218.0,68201.0,0.1549]
[1722111411660,0.00660444,68218.0,68217.0,0.18443]
[1722111411893,0.00660444,68218.0,68217.0,0.28443]
[1722111412136,0.14290444,68218.0,68217.0,0.02953]
[1722111412369,0.14290444,68218.0,68200.0,0.05751692]
[1722111412370,0.7,68215.0,68200.0,0.011]
[1722111412606,0.7,68215.0,68172.0,0.45077872]
[1722111412607,0.06,68200.0,68172.0,0.45077872]
[1722111413081,0.7,68197.0,68159.0,0.00862975]
[1722111413317,0.7,68197.0,68123.0,0.293586]
[1722111413318,0.07512979,68166.0,68160.0,0.02953]
[1722111413568,0.07512979,68166.0,68140.0,0.0256]
[1722111413569,0.07512979,68166.0,68161.0,0.02953]
[1722111413808,0.07512979,68166.0,68131.0,0.002]
[1722111414041,0.07512979,68159.0,68131.0,0.002]
[1722111414272,0.07512979,68166.0,68131.0,0.002]
[1722111414522,0.07512979,68166.0,68142.0,0.02953]
[1722111414523,0.07512979,68157.0,68142.0,0.02953]
[1722111414750,0.02304258,68153.0,68146.0,0.02953]
[1722111414974,0.00304258,68153.0,68146.0,0.047973]
[1722111415320,0.07612979,68166.0,68161.0,0.02953]
[1722111415421,0.001,68166.0,68161.0,0.02953]
[1722111415875,0.07512979,68162.0,68161.0,0.02953]
[1722111416140,0.07512979,68162.0,68160.0,0.011]
[1722111416372,0.21142979,68162.0,68129.0,0.02953]
[1722111416596,0.07512979,68151.0,68132.0,0.02953]
[1722111416823,0.1363,68150.0,68132.0,0.02953]
[1722111417275,0.07512979,68141.0,68132.0,0.02953]
[1722111417505,0.1363,68150.0,68132.0,0.02953]
[1722111417796,0.1363,68150.0,68131.0,0.002]
[1722111417797,0.2,68136.0,68131.0,0.002]
[1722111418035,0.07512979,68142.0,68089.0,0.00864828]
[1722111418036,0.293558,68130.0,68089.0,0.00864828]
[1722111418287,0.04291762,68129.0,68089.0,0.00864828]
[1722111418500,0.7,68130.0,68081.0,0.295766]